fUST/lending_fUST_20241224
["ID","MTS","AMOUNT","RATE_DAILY","PERIOD"]
[346535326,1735051837506,-1169.6,0.00013972,2]
[346535327,1735051837515,-2762.68,0.00013972,2]
[346535328,1735051837525,-1697.76,0.00013972,2]
[346535329,1735051837534,-500.0,0.00013972,2]
[346535330,1735051837543,-500.0,0.00013972,2]
[346535331,1735051837553,-1130.66,0.00013972,2]
[346535332,1735051837563,-500.0,0.00013972,2]
[346535333,1735051837573,-500.0,0.00013972,2]
[346535334,1735051837582,-773.14,0.00013972,2]
[346535335,1735051837590,-852.84,0.00013972,2]
[346535336,1735051837599,-500.0,0.00013972,2]
[346535337,1735051837609,-966.28,0.00013972,2]
[346535338,1735051837619,-201829.77168617,0.00013972,2]
[346535339,1735051837635,-600.0,0.00013972,2]
[346535362,1735051838505,-52750.0,0.00013972,2]
[346535374,1735051838781,-2336.85974076,0.00013972,2]
[346535375,1735051838794,-446.20833079,0.00013972,2]
[346535387,1735051840532,-804.52,0.00013698,2]
[346535389,1735051840541,-500.0,0.00013698,2]
[346535390,1735051840550,-500.0,0.00013698,2]
[346535391,1735051840560,-192342.46879996,0.00013972,2]
[346535393,1735051840571,-6449.999995,0.00013972,2]
[346535443,1735051843419,-500.0,0.00013698,2]
[346535444,1735051843429,-95.08641617,0.00013698,2]
[346535445,1735051843517,-797.88358383,0.00013698,2]
[346535446,1735051843527,-1197.99896617,0.00013972,2]
[346535447,1735051843548,-1030.0,0.00013972,2]
[346535456,1735051843760,-1306.622849,0.00013972,2]
[346535457,1735051843777,-1002254.65330106,0.00013972,2]
[346535487,1735051849311,-8685.37,0.00013698,2]
[346535488,1735051849321,-32255.722513,0.00013972,2]
[346535489,1735051849355,-9902.51716454,0.00013972,2]
[346535496,1735052957149,-812.9989344,0.00012381,2]
[346535539,1735053032733,-301.16217913,0.00012559,2]
[346535545,1735053032777,-500.95574167,0.00012559,2]
[346535547,1735053032787,-812.9989344,0.00012632,2]
[346535549,1735053032797,-2285.8920321,0.00012854,2]
[346535551,1735053032807,-2000.000001,0.00013,2]
[346535553,1735053032817,-300.0,0.00013411,2]
[346535555,1735053032827,-300.0,0.00013411,2]
[346535557,1735053032838,-1200.0,0.00013412,2]
[346535559,1735053032848,-500.0,0.00013412,2]
[346535560,1735053032858,-151.0,0.00013412,2]
[346535561,1735053032868,-3507.94224756,0.000135,2]
[346535562,1735053032877,-391.52,0.0001354,2]
[346535563,1735053032887,-341.09702382,0.00013597,2]
[346535564,1735053032897,-171.35434806,0.000136,2]
[346535585,1735053038652,-1325.21666263,0.000136,2]
[346535587,1735053038662,-2000.0,0.000136,2]
[346535589,1735053038671,-303.8781763,0.000136,2]
[346535591,1735053038681,-500.0,0.00013673,2]
[346535593,1735053038691,-500.0,0.00013673,2]
[346535595,1735053038701,-500.0,0.00013673,2]
[346535597,1735053038710,-500.0,0.00013673,2]
[346535599,1735053038719,-500.0,0.00013673,2]
[346535601,1735053038728,-500.0,0.00013673,2]
[346535602,1735053038737,-511.91928225,0.00013673,2]
[346535604,1735053038747,-500.0,0.00013673,2]
[346535605,1735053038757,-500.0,0.00013673,2]
[346535606,1735053038766,-500.0,0.00013673,2]
[346535607,1735053038776,-500.0,0.00013673,2]
[346535608,1735053038786,-500.0,0.00013673,2]
[346535609,1735053038796,-167.32602722,0.00013673,2]
[346535611,1735053038806,-500.0,0.00013673,2]
[346535613,1735053038816,-500.54994157,0.00013673,2]
[346535615,1735053038827,-365.379,0.00013696,2]
[346535616,1735053038837,-37445.25114536,0.00013697,7]
[346535618,1735053038847,-500.0,0.00013697,2]
[346535632,1735053039014,-500.0,0.00013697,2]
[346535634,1735053039025,-500.0,0.00013697,2]
[346535635,1735053039035,-500.0,0.00013697,2]
[346535636,1735053039045,-222.15022453,0.00013697,2]
[346535637,1735053039055,-500.0,0.00013697,2]
[346535638,1735053039064,-500.0,0.00013697,2]
[346535639,1735053039074,-500.0,0.00013697,2]
[346535641,1735053039084,-500.0,0.00013697,2]
[346535643,1735053039094,-500.0,0.00013697,2]
[346535645,1735053039103,-500.0,0.00013697,2]
[346535647,1735053039113,-500.0,0.00013697,2]
[346535648,1735053039123,-500.0,0.00013697,2]
[346535649,1735053039133,-500.0,0.00013697,2]
[346535650,1735053039143,-500.0,0.00013697,2]
[346535651,1735053039152,-500.0,0.00013697,2]
[346535652,1735053039162,-500.0,0.00013697,2]
[346535653,1735053039172,-501.59104386,0.00013698,2]
[346535654,1735053039181,-500.0,0.00013698,2]
[346535655,1735053039191,-501.26357368,0.00013698,2]
[346535656,1735053039201,-500.3499789,0.00013698,2]
[346535657,1735053039211,-500.42765598,0.00013698,2]
[346535658,1735053039221,-500.67719492,0.00013698,2]
[346535659,1735053039230,-500.60432043,0.00013698,2]
[346535660,1735053039240,-501.18358387,0.00013698,2]
[346535661,1735053039251,-500.96236346,0.00013698,2]
[346535662,1735053039260,-500.37468758,0.00013698,2]
[346535663,1735053039270,-501.50833372,0.00013698,2]
[346535664,1735053039279,-500.0,0.00013698,2]
[346535665,1735053039289,-500.0,0.00013698,2]
[346535666,1735053039299,-500.0,0.00013698,2]
[346535667,1735053039308,-500.0,0.00013698,2]
[346535668,1735053039318,-500.0,0.00013698,2]
[346535669,1735053039327,-500.0,0.00013698,2]
[346535670,1735053039337,-502.70771352,0.00013698,2]
[346535671,1735053039346,-500.0,0.00013698,2]
[346535672,1735053039356,-500.0,0.00013698,2]
[346535673,1735053039366,-207.28235946,0.00013698,2]
[346535674,1735053039375,-500.0,0.00013698,2]
[346535675,1735053039385,-500.0,0.00013698,2]
[346535676,1735053039395,-501.8512209,0.00013698,2]
[346535677,1735053039405,-500.0,0.00013698,2]
[346535678,1735053039414,-500.0,0.00013698,2]
[346535679,1735053039424,-501.08736066,0.00013698,2]
[346535680,1735053039433,-266.378923,0.00013698,2]
[346535681,1735053039444,-500.0,0.00013698,2]
[346535682,1735053039454,-500.0,0.00013698,2]
[346535683,1735053039464,-610.42471469,0.00013698,2]
[346535684,1735053039477,-500.0,0.00013698,2]
[346535685,1735053039487,-500.0,0.00013698,2]
[346535686,1735053039496,-500.0,0.00013698,2]
[346535687,1735053039506,-500.0,0.00013698,2]
[346535688,1735053039515,-500.0,0.00013698,2]
[346535689,1735053039524,-500.0,0.00013698,2]
[346535690,1735053039536,-500.0,0.00013698,2]
[346535691,1735053039545,-500.0,0.00013698,2]
[346535692,1735053039555,-491.51278085,0.00013698,2]
[346535693,1735053039564,-303.21006161,0.00013698,2]
[346535694,1735053039574,-640.98816472,0.00013698,2]
[346535695,1735053039583,-500.0,0.00013698,2]
[346535696,1735053039592,-500.0,0.00013698,2]
[346535697,1735053039602,-500.0,0.00013698,2]
[346535698,1735053039613,-500.0,0.00013698,2]
[346535699,1735053039624,-502.54835622,0.00013698,2]
[346535700,1735053039633,-500.0,0.00013698,2]
[346535701,1735053039643,-500.0,0.00013698,2]
[346535702,1735053039653,-532.56858454,0.00013698,2]
[346535703,1735053039662,-500.0,0.00013698,2]
[346535704,1735053039672,-500.0,0.00013698,2]
[346535705,1735053039682,-500.0,0.00013698,2]
[346535706,1735053039691,-500.0,0.00013698,2]
[346535707,1735053039702,-501.59461399,0.00013698,2]
[346535708,1735053039712,-500.0,0.00013698,2]
[346535709,1735053039723,-500.0,0.00013698,2]
[346535710,1735053039733,-500.0,0.00013698,2]
[346535711,1735053039742,-500.0,0.00013698,2]
[346535712,1735053039752,-500.0,0.00013698,2]
[346535713,1735053039762,-501.02143821,0.00013698,2]
[346535714,1735053039771,-500.0,0.00013698,2]
[346535715,1735053039781,-502.21022749,0.00013698,2]
[346535716,1735053039791,-500.0,0.00013698,2]
[346535717,1735053039801,-501.81703898,0.00013698,2]
[346535718,1735053039811,-502.15276048,0.00013698,2]
[346535719,1735053039821,-500.0,0.00013698,2]
[346535720,1735053039830,-512.05,0.00013698,2]
[346535721,1735053039840,-441.69494703,0.00013698,2]
[346535722,1735053039850,-500.0,0.00013698,2]
[346535723,1735053039859,-500.0,0.00013698,2]
[346535724,1735053039869,-503.07177438,0.00013698,2]
[346535725,1735053039878,-501.21154924,0.00013698,2]
[346535726,1735053039888,-500.0,0.00013698,2]
[346535727,1735053039900,-500.0,0.00013698,2]
[346535728,1735053039909,-502.25560614,0.00013698,2]
[346535729,1735053039919,-500.0,0.00013698,2]
[346535730,1735053039929,-500.0,0.00013698,2]
[346535731,1735053039938,-500.0,0.00013698,2]
[346535732,1735053039949,-500.0,0.00013698,2]
[346535733,1735053039958,-500.0,0.00013698,2]
[346535734,1735053039968,-500.95104255,0.00013698,2]
[346535735,1735053039980,-500.0,0.00013698,2]
[346535736,1735053039990,-500.0,0.00013698,2]
[346535737,1735053039999,-500.0,0.00013698,2]
[346535738,1735053040009,-500.86246957,0.00013698,2]
[346535739,1735053040019,-500.0,0.00013698,2]
[346535740,1735053040028,-501.71982506,0.00013698,2]
[346535741,1735053040037,-500.0,0.00013698,2]
[346535742,1735053040047,-500.0,0.00013698,2]
[346535743,1735053040057,-500.0,0.00013698,2]
[346535744,1735053040067,-500.0,0.00013698,2]
[346535745,1735053040076,-500.0,0.00013698,2]
[346535746,1735053040086,-500.0,0.00013698,2]
[346535747,1735053040096,-500.0,0.00013698,2]
[346535748,1735053040106,-501.82679222,0.00013698,2]
[346535749,1735053040115,-500.0,0.00013698,2]
[346535751,1735053040125,-503.09685526,0.00013698,2]
[346535752,1735053040135,-502.8309681,0.00013698,2]
[346535753,1735053040144,-500.0,0.00013698,2]
[346535754,1735053040153,-500.0,0.00013698,2]
[346535755,1735053040163,-501.30850946,0.00013698,2]
[346535756,1735053040172,-237.14738331,0.00013698,2]
[346535757,1735053040182,-500.0,0.00013698,2]
[346535758,1735053040192,-501.72265424,0.00013698,2]
[346535759,1735053040203,-500.0,0.00013698,2]
[346535760,1735053040213,-502.92637864,0.00013698,2]
[346535761,1735053040223,-500.0,0.00013698,2]
[346535762,1735053040233,-500.0,0.00013698,2]
[346535763,1735053040242,-500.0,0.00013698,2]
[346535764,1735053040252,-500.0,0.00013698,2]
[346535765,1735053040262,-500.0,0.00013698,2]
[346535767,1735053040272,-500.0,0.00013698,2]
[346535768,1735053040281,-500.0,0.00013698,2]
[346535769,1735053040291,-500.0,0.00013698,2]
[346535770,1735053040301,-500.0,0.00013698,2]
[346535771,1735053040311,-502.81972876,0.00013698,2]
[346535772,1735053040321,-500.0,0.00013698,2]
[346535773,1735053040331,-500.93438625,0.00013698,2]
[346535774,1735053040341,-500.0,0.00013698,2]
[346535775,1735053040350,-501.30236144,0.00013698,2]
[346535776,1735053040360,-500.0,0.00013698,2]
[346535777,1735053040370,-500.0,0.00013698,2]
[346535779,1735053040380,-500.0,0.00013698,2]
[346535780,1735053040389,-500.0,0.00013698,2]
[346535781,1735053040399,-500.0,0.00013698,2]
[346535782,1735053040409,-500.0,0.00013698,2]
[346535783,1735053040419,-500.0,0.00013698,2]
[346535784,1735053040430,-500.0,0.00013698,2]
[346535785,1735053040442,-500.0,0.00013698,2]
[346535786,1735053040454,-500.0,0.00013698,2]
[346535787,1735053040464,-500.0,0.00013698,2]
[346535788,1735053040474,-500.0,0.00013698,2]
[346535789,1735053040485,-500.0,0.00013698,2]
[346535790,1735053040495,-500.0,0.00013698,2]
[346535791,1735053040505,-500.0,0.00013698,2]
[346535792,1735053040517,-500.0,0.00013698,2]
[346535793,1735053040529,-500.0,0.00013698,2]
[346535794,1735053040543,-500.0,0.00013698,2]
[346535795,1735053040553,-500.0,0.00013698,2]
[346535796,1735053040563,-500.0,0.00013698,2]
[346535797,1735053040573,-500.0,0.00013698,2]
[346535798,1735053040583,-500.0,0.00013698,2]
[346535799,1735053040593,-500.0,0.00013698,2]
[346535800,1735053040603,-500.0,0.00013698,2]
[346535802,1735053040613,-500.0,0.00013698,2]
[346535804,1735053040623,-500.0,0.00013698,2]
[346535806,1735053040632,-1050.74,0.00013698,2]
[346535807,1735053040642,-500.0,0.00013698,2]
[346535808,1735053040653,-500.0,0.00013698,2]
[346535809,1735053040662,-500.0,0.00013698,2]
[346535810,1735053040673,-500.0,0.00013698,2]
[346535812,1735053040682,-500.0,0.00013698,2]
[346535814,1735053040693,-500.0,0.00013698,2]
[346535815,1735053040704,-500.0,0.00013698,2]
[346535817,1735053040714,-500.0,0.00013698,2]
[346535819,1735053040727,-500.0,0.00013698,2]
[346535820,1735053040737,-852.3,0.00013698,2]
[346535821,1735053040747,-500.0,0.00013698,2]
[346535823,1735053040757,-500.0,0.00013698,2]
[346535825,1735053040766,-500.0,0.00013698,2]
[346535826,1735053040775,-503.82120432,0.00013698,2]
[346535828,1735053040785,-500.0,0.00013698,2]
[346535830,1735053040795,-500.0,0.00013698,2]
[346535832,1735053040808,-500.0,0.00013698,2]
[346535833,1735053040818,-500.0,0.00013698,2]
[346535835,1735053040828,-500.0,0.00013698,2]
[346535836,1735053040838,-533.58933077,0.00013698,2]
[346535837,1735053040848,-501.18396974,0.00013698,2]
[346535838,1735053040858,-500.0,0.00013698,2]
[346535839,1735053040868,-500.0,0.00013698,2]
[346535840,1735053040878,-500.0,0.00013698,2]
[346535841,1735053040887,-500.0,0.00013698,2]
[346535842,1735053040897,-501.28264603,0.00013698,2]
[346535843,1735053040907,-500.0,0.00013698,2]
[346535844,1735053040917,-500.0,0.00013698,2]
[346535845,1735053040926,-501.11177485,0.00013698,2]
[346535846,1735053040936,-897.33,0.00013698,2]
[346535847,1735053040947,-500.0,0.00013698,2]
[346535848,1735053040956,-500.0,0.00013698,2]
[346535849,1735053040966,-510.33,0.00013698,2]
[346535850,1735053040976,-500.0,0.00013698,2]
[346535851,1735053040986,-500.0,0.00013698,2]
[346535852,1735053040996,-501.26795804,0.00013698,2]
[346535853,1735053041006,-500.0,0.00013698,2]
[346535854,1735053041017,-500.0,0.00013698,2]
[346535855,1735053041029,-502.29560854,0.00013698,2]
[346535856,1735053041041,-500.0,0.00013698,2]
[346535857,1735053041054,-501.89886658,0.00013698,2]
[346535858,1735053041065,-500.0,0.00013698,2]
[346535859,1735053041077,-500.0,0.00013698,2]
[346535860,1735053041088,-500.0,0.00013698,2]
[346535861,1735053041097,-500.0,0.00013698,2]
[346535862,1735053041107,-501.78100557,0.00013698,2]
[346535863,1735053041116,-500.0,0.00013698,2]
[346535864,1735053041126,-500.0,0.00013698,2]
[346535865,1735053041135,-2252.66,0.00013698,2]
[346535866,1735053041145,-500.0,0.00013698,2]
[346535867,1735053041154,-506.1558531,0.00013698,2]
[346535868,1735053041164,-501.65349514,0.00013698,2]
[346535869,1735053041174,-500.0,0.00013698,2]
[346535870,1735053041184,-501.95454289,0.00013698,2]
[346535871,1735053041194,-500.0,0.00013698,2]
[346535872,1735053041205,-502.06399652,0.00013698,2]
[346535873,1735053041215,-500.0,0.00013698,2]
[346535874,1735053041224,-500.0,0.00013698,2]
[346535875,1735053041234,-500.0,0.00013698,2]
[346535876,1735053041243,-500.0,0.00013698,2]
[346535877,1735053041253,-500.0,0.00013698,2]
[346535878,1735053041262,-500.0,0.00013698,2]
[346535879,1735053041272,-502.56687461,0.00013698,2]
[346535880,1735053041281,-500.0,0.00013698,2]
[346535881,1735053041291,-500.0,0.00013698,2]
[346535882,1735053041301,-500.0,0.00013698,2]
[346535883,1735053041310,-500.0,0.00013698,2]
[346535884,1735053041320,-500.0,0.00013698,2]
[346535885,1735053041330,-500.0,0.00013698,2]
[346535886,1735053041339,-503.9,0.00013698,2]
[346535887,1735053041349,-500.0,0.00013698,2]
[346535888,1735053041359,-650.37,0.00013698,2]
[346535889,1735053041369,-503.09485725,0.00013698,2]
[346535890,1735053041379,-604.00934335,0.00013698,2]
[346535891,1735053041389,-500.0,0.00013698,2]
[346535892,1735053041399,-500.0,0.00013698,2]
[346535893,1735053041409,-500.0,0.00013698,2]
[346535894,1735053041418,-5227.42,0.00013698,2]
[346535895,1735053041428,-501.52071253,0.00013698,2]
[346535896,1735053041438,-501.02567978,0.00013698,2]
[346535897,1735053041452,-500.0,0.00013698,2]
[346535898,1735053041463,-503.26539064,0.00013698,2]
[346535899,1735053041474,-501.19738323,0.00013698,2]
[346535900,1735053041484,-500.0,0.00013698,2]
[346535901,1735053041494,-500.0,0.00013698,2]
[346535902,1735053041504,-500.0,0.00013698,2]
[346535903,1735053041514,-1025.16,0.00013698,2]
[346535904,1735053041523,-509.9651639,0.00013698,2]
[346535905,1735053041535,-500.0,0.00013698,2]
[346535906,1735053041545,-500.0,0.00013698,2]
[346535907,1735053041554,-501.25543443,0.00013698,2]
[346535908,1735053041564,-500.0,0.00013698,2]
[346535909,1735053041575,-584.24,0.00013698,2]
[346535910,1735053041584,-500.0,0.00013698,2]
[346535911,1735053041594,-500.0,0.00013698,2]
[346535912,1735053041604,-500.0,0.00013698,2]
[346535913,1735053041615,-500.0,0.00013698,2]
[346535914,1735053041625,-500.0,0.00013698,2]
[346535915,1735053041759,-500.0,0.00013698,2]
[346535916,1735053041770,-500.0,0.00013698,2]
[346535917,1735053041780,-500.0,0.00013698,2]
[346535918,1735053041790,-500.0,0.00013698,2]
[346535919,1735053041801,-500.0,0.00013698,2]
[346535920,1735053041811,-501.25578917,0.00013698,2]
[346535921,1735053041821,-1625.24,0.00013698,2]
[346535922,1735053041831,-500.0,0.00013698,2]
[346535923,1735053041840,-311.54460316,0.00013698,2]
[346535924,1735053041851,-500.0,0.00013698,2]
[346535925,1735053041861,-500.0,0.00013698,2]
[346535926,1735053041871,-500.0,0.00013698,2]
[346535927,1735053041882,-587.48477502,0.00013698,2]
[346535928,1735053041891,-501.49543745,0.00013698,2]
[346535929,1735053041901,-500.0,0.00013698,2]
[346535930,1735053041911,-500.0,0.00013698,2]
[346535931,1735053041920,-518.24,0.00013698,2]
[346535932,1735053041931,-500.0,0.00013698,2]
[346535933,1735053041940,-500.0,0.00013698,2]
[346535934,1735053041951,-503.23550427,0.00013698,2]
[346535935,1735053041960,-500.0,0.00013698,2]
[346535936,1735053041970,-500.0,0.00013698,2]
[346535937,1735053041980,-500.0,0.00013698,2]
[346535938,1735053041989,-503.29721137,0.00013698,2]
[346535939,1735053042001,-500.0,0.00013698,2]
[346535940,1735053042010,-500.0,0.00013698,2]
[346535941,1735053042020,-877.22,0.00013698,2]
[346535942,1735053042030,-500.0,0.00013698,2]
[346535943,1735053042040,-500.0,0.00013698,2]
[346535944,1735053042050,-500.0,0.00013698,2]
[346535945,1735053042059,-500.0,0.00013698,2]
[346535946,1735053042069,-500.0,0.00013698,2]
[346535947,1735053042078,-500.0,0.00013698,2]
[346535948,1735053042088,-500.0,0.00013698,2]
[346535949,1735053042097,-503.69407622,0.00013698,2]
[346535950,1735053042107,-500.0,0.00013698,2]
[346535951,1735053042116,-500.0,0.00013698,2]
[346535952,1735053042126,-502.14825933,0.00013698,2]
[346535953,1735053042136,-500.0,0.00013698,2]
[346535954,1735053042145,-500.0,0.00013698,2]
[346535955,1735053042155,-500.0,0.00013698,2]
[346535956,1735053042165,-500.0,0.00013698,2]
[346535957,1735053042175,-500.92148755,0.00013698,2]
[346535958,1735053042184,-500.0,0.00013698,2]
[346535959,1735053042197,-500.0,0.00013698,2]
[346535960,1735053042208,-501.14942367,0.00013698,2]
[346535961,1735053042218,-508.59994683,0.00013698,2]
[346535962,1735053042228,-500.0,0.00013698,2]
[346535963,1735053042238,-500.0,0.00013698,2]
[346535964,1735053042248,-500.0,0.00013698,2]
[346535965,1735053042258,-501.74778541,0.00013698,2]
[346535966,1735053042268,-500.0,0.00013698,2]
[346535967,1735053042278,-500.0,0.00013698,2]
[346535968,1735053042287,-500.0,0.00013698,2]
[346535969,1735053042297,-500.0,0.00013698,2]
[346535970,1735053042306,-500.0,0.00013698,2]
[346535971,1735053042315,-500.0,0.00013698,2]
[346535972,1735053042325,-500.0,0.00013698,2]
[346535973,1735053042335,-500.0,0.00013698,2]
[346535974,1735053042344,-500.0,0.00013698,2]
[346535975,1735053042354,-515.04,0.00013698,2]
[346535976,1735053042363,-501.14286277,0.00013698,2]
[346535977,1735053042373,-488.62218547,0.00013698,2]
[346535978,1735053042805,-2000.0,0.000136,2]
[346535979,1735053042816,-11.37781453,0.00013698,2]
[346535980,1735053042826,-1000.0,0.00013698,2]
[346535981,1735053042836,-500.0,0.00013698,2]
[346535982,1735053042845,-1000.0,0.00013698,2]
[346535983,1735053042855,-500.0,0.00013698,2]
[346535984,1735053042864,-1000.0,0.00013698,2]
[346535985,1735053042873,-672.29902989,0.00013698,2]
[346535986,1735053042883,-500.0,0.00013698,2]
[346535987,1735053042892,-500.0,0.00013698,2]
[346535988,1735053042902,-500.0,0.00013698,2]
[346535989,1735053042911,-501.10183231,0.00013698,2]
[346535990,1735053042921,-500.0,0.00013698,2]
[346535991,1735053042931,-213.63873377,0.00013698,2]
[346535992,1735053042941,-500.0,0.00013698,2]
[346535993,1735053042952,-500.0,0.00013698,2]
[346535994,1735053042962,-566.92,0.00013698,2]
[346535995,1735053042972,-500.0,0.00013698,2]
[346535996,1735053042981,-500.0,0.00013698,2]
[346535997,1735053042990,-500.0,0.00013698,2]
[346535998,1735053043000,-500.0,0.00013698,2]
[346535999,1735053043010,-500.0,0.00013698,2]
[346536000,1735053043020,-500.0,0.00013698,2]
[346536001,1735053043029,-262.37644393,0.00013698,2]
[346536002,1735053043039,-500.0,0.00013698,2]
[346536003,1735053043049,-502.8774136,0.00013698,2]
[346536004,1735053043059,-500.0,0.00013698,2]
[346536005,1735053043069,-500.0,0.00013698,2]
[346536006,1735053043080,-501.07449819,0.00013698,2]
[346536007,1735053043090,-501.58273791,0.00013698,2]
[346536008,1735053043100,-500.0,0.00013698,2]
[346536009,1735053043110,-500.0,0.00013698,2]
[346536010,1735053043121,-500.0,0.00013698,2]
[346536012,1735053043131,-500.0,0.00013698,2]
[346536014,1735053043141,-500.0,0.00013698,2]
[346536015,1735053043151,-500.0,0.00013698,2]
[346536018,1735053043162,-500.0,0.00013698,2]
[346536019,1735053043173,-500.0,0.00013698,2]
[346536020,1735053043183,-500.0,0.00013698,2]
[346536021,1735053043193,-500.84594892,0.00013698,2]
[346536022,1735053043205,-500.0,0.00013698,2]
[346536023,1735053043215,-1849.68,0.00013698,2]
[346536024,1735053043225,-500.0,0.00013698,2]
[346536025,1735053043235,-500.0,0.00013698,2]
[346536026,1735053043245,-500.0,0.00013698,2]
[346536027,1735053043255,-500.0,0.00013698,2]
[346536029,1735053043265,-311.32939574,0.00013698,2]
[346536032,1735053043275,-500.92310636,0.00013698,2]
[346536033,1735053043285,-500.0,0.00013698,2]
[346536035,1735053043296,-500.0,0.00013698,2]
[346536036,1735053043305,-499.95930663,0.00013698,2]
[346536037,1735053043316,-500.0,0.00013698,2]
[346536039,1735053043325,-150.0,0.00013698,2]
[346536041,1735053043336,-501.56317045,0.00013698,2]
[346536042,1735053043345,-500.0,0.00013698,2]
[346536043,1735053043355,-500.0,0.00013698,2]
[346536044,1735053043365,-500.0,0.00013698,2]
[346536046,1735053043375,-501.59414691,0.00013698,2]
[346536047,1735053043385,-500.0,0.00013698,2]
[346536049,1735053043395,-500.0,0.00013698,2]
[346536051,1735053043405,-235.52259879,0.00013698,2]
[346536052,1735053043415,-500.0,0.00013698,2]
[346536053,1735053043425,-500.0,0.00013698,2]
[346536054,1735053043435,-500.0,0.00013698,2]
[346536055,1735053043446,-501.09943716,0.00013698,2]
[346536056,1735053043456,-500.0,0.00013698,2]
[346536057,1735053043466,-500.0,0.00013698,2]
[346536058,1735053043475,-1006.91,0.00013698,2]
[346536059,1735053043485,-500.0,0.00013698,2]
[346536060,1735053043495,-501.62912457,0.00013698,2]
[346536061,1735053043505,-597.13,0.00013698,2]
[346536062,1735053043514,-500.0,0.00013698,2]
[346536063,1735053043523,-500.0,0.00013698,2]
[346536064,1735053043534,-500.0,0.00013698,2]
[346536065,1735053043544,-500.0,0.00013698,2]
[346536066,1735053043553,-500.0,0.00013698,2]
[346536067,1735053043563,-500.0,0.00013698,2]
[346536069,1735053043573,-201.31001701,0.00013698,2]
[346536070,1735053043582,-500.0,0.00013698,2]
[346536072,1735053043592,-500.0,0.00013698,2]
[346536074,1735053043602,-500.0,0.00013698,2]
[346536075,1735053043614,-500.0,0.00013698,2]
[346536076,1735053043624,-500.0,0.00013698,2]
[346536077,1735053043634,-500.0,0.00013698,2]
[346536078,1735053043643,-500.0,0.00013698,2]
[346536080,1735053043653,-500.0,0.00013698,2]
[346536081,1735053043662,-500.0,0.00013698,2]
[346536082,1735053043671,-500.0,0.00013698,2]
[346536083,1735053043681,-502.11448103,0.00013698,2]
[346536084,1735053043690,-500.79952094,0.00013698,2]
[346536085,1735053043700,-583.61,0.00013698,2]
[346536086,1735053043709,-500.0,0.00013698,2]
[346536087,1735053043719,-500.0,0.00013698,2]
[346536088,1735053043728,-416.19536249,0.00013698,2]
[346536089,1735053043737,-500.0,0.00013698,2]
[346536090,1735053043747,-519.65,0.00013698,2]
[346536091,1735053043756,-500.0,0.00013698,2]
[346536092,1735053043765,-500.0,0.00013698,2]
[346536093,1735053043775,-500.0,0.00013698,2]
[346536094,1735053043784,-500.0,0.00013698,2]
[346536095,1735053043793,-500.0,0.00013698,2]
[346536096,1735053043802,-500.0,0.00013698,2]
[346536097,1735053043812,-500.0,0.00013698,2]
[346536098,1735053043822,-500.0,0.00013698,2]
[346536099,1735053043832,-501.44148275,0.00013698,2]
[346536100,1735053043841,-500.0,0.00013698,2]
[346536101,1735053043850,-500.0,0.00013698,2]